fUST/lending_fUST_20250912
["ID","MTS","AMOUNT","RATE_DAILY","PERIOD"]
[385040093,1757651451646,-837.24,0.00019232,2]
[385040095,1757651451655,-480.0,0.00019232,2]
[385040097,1757651451665,-3185.53,0.00019232,2]
[385040099,1757651451674,-1000.0,0.00019364,2]
[385040101,1757651451683,-216.081,0.00019463,2]
[385040103,1757651451692,-725.44,0.00019505,2]
[385040105,1757651451702,-480.0,0.00019505,2]
[385040107,1757651451711,-503.91,0.00019505,2]
[385040109,1757651451720,-1548.88,0.00019505,2]
[385040111,1757651451728,-837.24,0.00019506,2]
[385040113,1757651451738,-480.0,0.00019506,2]
[385040115,1757651451746,-3185.53,0.00019506,2]
[385040117,1757651451755,-3000.0,0.0001971,2]
[385040119,1757651451770,-339.44485625,0.00019739,2]
[385040120,1757651451779,-168.0128525,0.00019775,2]
[385040122,1757651451788,-725.44,0.00019779,2]
[385040124,1757651451797,-480.0,0.00019779,2]
[385040125,1757651451807,-503.91,0.00019779,2]
[385040126,1757651451816,-1548.88,0.00019779,2]
[385040127,1757651451825,-837.24,0.0001978,2]
[385040128,1757651451834,-599.87,0.0001978,2]
[385040129,1757651451844,-3185.53,0.0001978,2]
[385040130,1757651451853,-151.0,0.000198,2]
[385040131,1757651451862,-7567.12292603,0.000199,2]
[385040132,1757651451871,-725.44,0.00020053,2]
[385040133,1757651451880,-480.0,0.00020053,2]
[385040134,1757651451890,-503.91,0.00020053,2]
[385040135,1757651451898,-1548.88,0.00020053,2]
[385040136,1757651451907,-837.24,0.00020054,2]
[385040137,1757651451916,-3185.53,0.00020054,2]
[385040138,1757651451925,-151.0,0.00020153,2]
[385040139,1757651451934,-151.0,0.00020153,2]
[385040140,1757651451943,-151.0,0.00020153,2]
[385040141,1757651451954,-195.98641819,0.00020153,2]
[385040142,1757651451963,-154.057419,0.00020153,2]
[385040143,1757651451972,-154.057419,0.00020153,2]
[385040144,1757651451981,-154.057419,0.00020153,2]
[385040145,1757651451990,-154.057419,0.00020153,2]
[385040146,1757651452000,-151.0,0.00020153,2]
[385040147,1757651452010,-151.0,0.00020153,2]
[385040148,1757651452019,-151.0,0.00020153,2]
[385040149,1757651452027,-151.0,0.00020153,2]
[385040150,1757651452036,-474.87818,0.00020187,2]
[385040151,1757651452045,-1152.0,0.00020199,2]
[385040152,1757651452054,-420.56363564,0.00020258,2]
[385040153,1757651452063,-1000.0,0.00020292,20]
[385040154,1757651452071,-151.0,0.00020292,2]
[385040155,1757651452080,-7567.12292582,0.00020299,2]
[385040156,1757651452090,-725.66,0.00020327,2]
[385040157,1757651452099,-312.59,0.00020327,2]
[385040158,1757651452108,-503.93,0.00020327,2]
[385040159,1757651452117,-1548.98894519,0.00020327,2]
[385040170,1757651452197,-837.45,0.00020328,2]
[385040172,1757651452214,-3185.76137357,0.00020328,2]
[385040174,1757651452224,-1001.747633,0.000204,2]
[385040176,1757651452233,-7567.12292582,0.00020699,2]
[385040178,1757651452243,-151.0,0.00020699,2]
[385040180,1757651452253,-151.0,0.00020699,2]
[385040182,1757651452263,-151.0,0.00020699,2]
[385040184,1757651452272,-2100.0,0.00020712,2]
[385040186,1757651452281,-151.0,0.000209,4]
[385040188,1757651452291,-1000.0,0.000209,2]
[385040190,1757651452300,-234.83588746,0.00020998,2]
[385040192,1757651452310,-135932.13723063,0.00020998,2]
[385040360,1757651453892,-160.0,0.00015874,2]
[385040362,1757651453901,-321.24900348,0.00020998,2]
[385040387,1757651454130,3201.45007076,0.00013925,2]
[385042045,1757651471878,300.0,0.00013785,2]
[385042140,1757651472802,-300.0,0.00013924,2]
[385044366,1757651495548,412.95941227,0.00013786,2]
[385045301,1757651509373,1000.0,0.00018903,20]
[385047971,1757651606896,9287.05058773,0.00013,2]
[385047972,1757651606920,10000.01,0.00013,2]
[385047973,1757651606944,10000.01,0.00013,2]
[385047974,1757651606967,10000.01,0.00013,2]
[385047975,1757651606992,10000.01,0.00013,2]
[385047976,1757651607015,10000.01,0.00013,2]
[385047977,1757651607039,10000.01,0.00013,2]
[385047978,1757651607061,10000.01,0.00013,2]
[385047979,1757651607084,10000.01,0.00013,2]
[385047980,1757651607107,10000.01,0.00013,2]
[385047981,1757651607129,10000.01,0.00013,2]
[385047982,1757651607151,10000.01,0.00013,2]
[385047983,1757651607173,10000.01,0.00013,2]
[385047984,1757651607193,10000.01,0.00013,2]
[385047985,1757651607215,10000.01,0.00013,2]
[385047986,1757651607239,84.21281227,0.00013,2]
[385047987,1757651607961,-297.81688097,0.00013923,2]
[385047988,1757651607992,-193.64975211,0.00013924,2]
[385047989,1757651608025,-171.95629139,0.00013924,2]
[385047990,1757651608058,-1200.0,0.00013924,2]
[385047991,1757651608090,-300.0,0.00013924,2]
[385047993,1757651642485,300.0,0.00013924,2]
[385047994,1757651687446,5135.52114961,0.00013923,2]
[385047995,1757651688997,488.79934972,0.00013924,2]
[385047996,1757651700746,480.0,0.00013924,2]
[385047997,1757651703037,300.0,0.00013924,2]
[385047998,1757651704912,1200.0,0.00013924,2]
[385047999,1757651756154,1915.05748628,0.00013923,2]
[385048000,1757651764009,180.63201439,0.00013924,2]
[385048001,1757651764031,119.36798561,0.00013924,2]
[385048002,1757651765023,494.12786555,0.00013924,2]
[385048003,1757651778600,349.7096974,0.00013923,2]
[385048004,1757651813082,480.0,0.00013924,2]
[385048005,1757651822686,300.0,0.00013924,2]
[385048007,1757651841434,480.0,0.00013924,2]
[385048018,1757651855941,480.0,0.00013924,2]
[385048019,1757651858363,487.53155803,0.00013924,2]
[385048020,1757651863314,166.66666666,0.00013923,2]
[385048021,1757651867873,480.0,0.00013924,2]
[385048022,1757651869887,480.0,0.00013924,2]
[385048025,1757651883689,300.0,0.00013924,2]
[385048028,1757651893077,451.134272,0.00013699,2]
[385048030,1757651904150,725.44,0.00013924,2]
[385048033,1757651917026,490.86143636,0.00013924,2]
[385048035,1757651935089,480.0,0.00013924,2]
[385048036,1757651939325,480.0,0.00013924,2]
[385048037,1757651942745,300.0,0.00013924,2]
[385048039,1757651949766,480.0,0.00013924,2]
[385048040,1757651951333,480.0,0.00013924,2]
[385048043,1757651958020,1495.17051839,0.00013923,2]
[385048044,1757651958042,1928.51024803,0.00013923,2]
[385048045,1757651961558,480.0,0.00013924,2]
[385048046,1757651965380,480.0,0.00013924,2]
[385048047,1757651967666,480.0,0.00013924,2]
[385048049,1757651979267,480.0,0.00013924,2]
[385048052,1757651996121,503.91,0.00013924,2]
[385048056,1757652002550,481.87174669,0.00013924,2]
[385048057,1757652002840,300.0,0.00013924,2]
[385048058,1757652005906,710.0,0.00013924,2]
[385048059,1757652010020,480.0,0.00013924,2]
[385048062,1757652023230,480.0,0.00013924,2]
[385048063,1757652025994,480.0,0.00013924,2]
[385048066,1757652036995,480.0,0.00013924,2]
[385048067,1757652047614,480.0,0.00013924,2]
[385048069,1757652053606,485.23082794,0.00013924,2]
[385048070,1757652055062,480.0,0.00013924,2]
[385048071,1757652058866,480.0,0.00013924,2]
[385048072,1757652060702,305.99598519,0.00013923,2]
[385048073,1757652063876,4.49119215,0.00013924,2]
[385048074,1757652063906,295.50880785,0.00013924,2]
[385048077,1757652070627,480.0,0.00013924,2]
[385048078,1757652070812,480.0,0.00013924,2]
[385048080,1757652076172,480.0,0.00013924,2]
[385048081,1757652076811,480.0,0.00013924,2]
[385048082,1757652083701,480.0,0.00013924,2]
[385048083,1757652084817,485.04289125,0.00013924,2]
[385048086,1757652087322,488.5618906,0.00013924,2]
[385048087,1757652089383,480.0,0.00013924,2]
[385048088,1757652092009,480.0,0.00013924,2]
[385048089,1757652094434,480.0,0.00013924,2]
[385048090,1757652095798,485.2206668,0.00013924,2]
[385048091,1757652096219,482.56029268,0.00013924,2]
[385048092,1757652096590,1532.04598904,0.00013923,2]
[385048093,1757652101632,480.0,0.00013924,2]
[385048095,1757652106486,480.0,0.00013924,2]
[385048096,1757652118429,480.0,0.00013924,2]
[385048098,1757652121799,486.71256684,0.00013924,2]
[385048099,1757652122979,300.0,0.00013924,2]
[385048100,1757652126202,164.35689494,0.00013924,2]
[385048101,1757652126225,315.64310506,0.00013924,2]
[385048102,1757652126380,480.0,0.00013924,2]
[385048103,1757652128919,480.0,0.00013924,2]
[385048104,1757652131395,480.0,0.00013924,2]
[385048105,1757652134110,695.22,0.00013924,2]
[385048108,1757652143908,480.0,0.00013924,2]
[385048109,1757652146889,480.0,0.00013924,2]
[385048115,1757652153586,480.0,0.00013924,2]
[385048116,1757652159578,480.0,0.00013924,2]
[385048117,1757652162004,480.0,0.00013924,2]
[385048118,1757652174317,480.0,0.00013924,2]
[385048119,1757652175414,480.0,0.00013924,2]
[385048120,1757652183286,300.0,0.00013924,2]
[385048121,1757652183496,480.0,0.00013924,2]
[385048122,1757652190841,416.56221726,0.00013924,2]
[385048123,1757652190938,480.0,0.00013924,2]
[385048124,1757652195580,480.0,0.00013924,2]
[385048125,1757652200128,480.0,0.00013924,2]
[385048126,1757652208343,482.91,0.00013924,2]
[385048127,1757652213759,480.0,0.00013924,2]
[385048128,1757652216988,480.0,0.00013924,2]
[385048129,1757652221743,109.67467768,0.00013924,2]
[385048133,1757652299932,341.93886276,0.00013784,2]
[385048179,1757652620185,166.66666666,0.00013725,2]
[385048195,1757652633705,-1225.63679124,0.00013825,2]
[385048196,1757652633715,-1041.03986787,0.00013825,2]
[385048197,1757652633761,-1010.95272257,0.00013825,2]
[385048204,1757652638435,-230.46125384,0.00013825,2]
[385048205,1757652638444,-300.0,0.00013922,2]
[385048206,1757652638454,-486.88160834,0.00013923,2]
[385048207,1757652638463,-480.0,0.00013923,2]
[385048208,1757652638473,-480.0,0.00013923,2]
[385048209,1757652638483,-480.0,0.00013923,2]
[385048210,1757652638492,-485.54378534,0.00013923,2]
[385048211,1757652638503,-480.0,0.00013923,2]
[385048212,1757652638512,-480.0,0.00013923,2]
[385048213,1757652638522,-666.25,0.00013923,2]
[385048214,1757652638531,-480.0,0.00013924,2]
[385048215,1757652638540,-480.0,0.00013924,2]
[385048216,1757652638549,-308.20990211,0.00013924,2]
[385048217,1757652638561,-171.79009789,0.00013924,2]
[385048218,1757652638570,-480.0,0.00013924,2]
[385048219,1757652638580,-487.41515589,0.00013924,2]
[385048220,1757652638589,-480.0,0.00013924,2]
[385048221,1757652638599,-172.15728703,0.00013924,2]
[385048222,1757652638607,-480.0,0.00013924,2]
[385048223,1757652638617,-480.0,0.00013924,2]
[385048224,1757652638626,-480.0,0.00013924,2]
[385048225,1757652638635,-480.0,0.00013924,2]
[385048226,1757652638644,-267.58241398,0.00013924,2]
[385048227,1757652638654,-480.0,0.00013924,2]
[385048228,1757652638663,-480.0,0.00013924,2]
[385048229,1757652638673,-480.0,0.00013924,2]
[385048230,1757652638682,-480.0,0.00013924,2]
[385048231,1757652638692,-541.36133531,0.00013924,2]
[385048232,1757652638701,-480.0,0.00013924,2]
[385048233,1757652638711,-484.67587361,0.00013924,2]
[385048234,1757652638723,-480.0,0.00013924,2]
[385048235,1757652638735,-480.0,0.00013924,2]
[385048236,1757652638744,-480.0,0.00013924,2]
[385048237,1757652638753,-480.0,0.00013924,2]
[385048238,1757652638763,-486.86365684,0.00013924,2]
[385048239,1757652638777,-480.0,0.00013924,2]
[385048240,1757652638787,-480.0,0.00013924,2]
[385048241,1757652638797,-480.0,0.00013924,2]
[385048242,1757652638807,-480.0,0.00013924,2]
[385048243,1757652638816,-480.0,0.00013924,2]
[385048244,1757652638825,-480.0,0.00013924,2]
[385048245,1757652638834,-480.0,0.00013924,2]
[385048246,1757652638844,-480.0,0.00013924,2]
[385048247,1757652638853,-485.51451885,0.00013924,2]
[385048248,1757652638863,-505.92431692,0.00013924,2]
[385048249,1757652638872,-482.77596874,0.00013924,2]
[385048250,1757652638881,-484.13609026,0.00013924,2]
[385048251,1757652638891,-480.0,0.00013924,2]
[385048252,1757652638900,-480.0,0.00013924,2]
[385048253,1757652638909,-480.0,0.00013924,2]
[385048254,1757652638918,-1666.929,0.00013924,2]
[385048255,1757652638927,-483.01800159,0.00013924,2]
[385048256,1757652638936,-480.0,0.00013924,2]
[385048257,1757652638945,-480.0,0.00013924,2]
[385048258,1757652638954,-480.0,0.00013924,2]
[385048259,1757652638963,-480.0,0.00013924,2]
[385048260,1757652638974,-480.0,0.00013924,2]
[385048261,1757652638983,-480.0,0.00013924,2]
[385048262,1757652638993,-480.0,0.00013924,2]
[385048263,1757652639002,-482.22297251,0.00013924,2]
[385048264,1757652639011,-480.0,0.00013924,2]
[385048265,1757652639022,-480.0,0.00013924,2]
[385048266,1757652639031,-488.53126977,0.00013924,2]
[385048267,1757652639040,-483.17770178,0.00013924,2]
[385048268,1757652639050,-484.86108773,0.00013924,2]
[385048269,1757652639059,-480.0,0.00013924,2]
[385048270,1757652639069,-483.84924069,0.00013924,2]
[385048271,1757652639080,-480.0,0.00013924,2]
[385048272,1757652639090,-480.0,0.00013924,2]
[385048273,1757652639099,-483.46028147,0.00013924,2]
[385048274,1757652639109,-480.0,0.00013924,2]
[385048275,1757652639118,-480.0,0.00013924,2]
[385048276,1757652639127,-480.0,0.00013924,2]
[385048277,1757652639136,-483.86078602,0.00013924,2]
[385048278,1757652639146,-480.0,0.00013924,2]
[385048279,1757652639155,-480.0,0.00013924,2]
[385048280,1757652639165,-480.0,0.00013924,2]
[385048281,1757652639174,-495.28999692,0.00013924,2]
[385048282,1757652639183,-480.0,0.00013924,2]
[385048283,1757652639192,-2487.09044355,0.00013924,2]
[385048284,1757652639303,-698.43955645,0.00013924,2]
[385048285,1757652639319,-480.0,0.00013924,2]
[385048286,1757652639328,-482.77036129,0.00013924,2]
[385048287,1757652639337,-272.38772672,0.00013924,2]
[385048288,1757652639346,-413.68225895,0.00013924,2]
[385048289,1757652639359,-66.31774105,0.00013924,2]
[385048290,1757652639368,-490.39644181,0.00013924,2]
[385048291,1757652639378,-480.0,0.00013924,2]
[385048292,1757652639387,-486.32349585,0.00013924,2]
[385048293,1757652639397,-480.0,0.00013924,2]
[385048294,1757652639407,-480.0,0.00013924,2]
[385048295,1757652639419,-480.0,0.00013924,2]
[385048296,1757652639428,-480.0,0.00013924,2]
[385048297,1757652639437,-480.0,0.00013924,2]
[385048298,1757652639447,-480.0,0.00013924,2]
[385048299,1757652639457,-488.66203036,0.00013924,2]
[385048300,1757652639468,-480.0,0.00013924,2]
[385048301,1757652639477,-1548.88,0.00013924,2]
[385048302,1757652639486,-480.0,0.00013924,2]
[385048303,1757652639495,-480.0,0.00013924,2]
[385048304,1757652639505,-580.64045462,0.00013924,2]
[385048305,1757652639514,-495.81771429,0.00013924,2]
[385048306,1757652639523,-549.77072652,0.00013924,2]
[385048307,1757652639533,-480.0,0.00013924,2]
[385048308,1757652639542,-480.0,0.00013924,2]
[385048309,1757652639551,-480.0,0.00013924,2]
[385048310,1757652639560,-480.0,0.00013924,2]
[385048311,1757652639569,-480.0,0.00013924,2]
[385048312,1757652639578,-251.8785955,0.00013924,2]
[385048313,1757652639590,-228.1214045,0.00013924,2]
[385048314,1757652639599,-480.0,0.00013924,2]
[385048315,1757652639608,-480.0,0.00013924,2]
[385048316,1757652639617,-837.24,0.00013924,2]
[385048317,1757652639626,-480.0,0.00013924,2]
[385048318,1757652639636,-487.62736065,0.00013924,2]
[385048319,1757652639645,-484.16973006,0.00013924,2]
[385048320,1757652639654,-480.0,0.00013924,2]
[385048321,1757652639663,-480.0,0.00013924,2]
[385048322,1757652639672,-480.0,0.00013924,2]
[385048323,1757652639681,-480.0,0.00013924,2]
[385048324,1757652639691,-480.0,0.00013924,2]
[385048325,1757652639700,-480.0,0.00013924,2]
[385048326,1757652639710,-480.0,0.00013924,2]
[385048327,1757652639719,-480.0,0.00013924,2]
[385048328,1757652639729,-480.0,0.00013924,2]
[385048329,1757652639739,-480.0,0.00013924,2]
[385048330,1757652639748,-480.0,0.00013924,2]
[385048331,1757652639757,-492.54342896,0.00013924,2]
[385048332,1757652639767,-480.0,0.00013924,2]
[385048333,1757652639776,-482.66324529,0.00013924,2]
[385048334,1757652639786,-47473.36541626,0.00013924,2]
[385048335,1757652639795,-366798.54992924,0.00013925,2]
[385048336,1757652639804,-500.00638006,0.00013925,2]
[385048337,1757652639813,-500.0,0.00013973,2]
[385048338,1757652639823,-500.0,0.00013973,2]
[385048339,1757652639832,-151.0,0.00014023,2]
[385048340,1757652639842,-480.0,0.00014023,2]
[385048341,1757652639851,-480.0,0.00014023,2]
[385048342,1757652639860,-486.3511237,0.00014024,2]
[385048343,1757652639870,-484.07400614,0.00014024,2]
[385048344,1757652639980,-233.85881518,0.00014024,2]
[385048345,1757652639990,-484.37777663,0.00014024,2]
[385048346,1757652640000,-484.88734171,0.00014024,2]
[385048347,1757652640010,-486.73967394,0.00014024,2]
[385048348,1757652640019,-482.45430888,0.00014024,2]
[385048349,1757652640029,-482.52956425,0.00014024,2]
[385048350,1757652640038,-482.59655625,0.00014024,2]
[385048351,1757652640047,-494.77565794,0.00014024,2]
[385048352,1757652640056,-480.0,0.00014024,2]
[385048353,1757652640066,-486.98357216,0.00014024,2]
[385048354,1757652640075,-480.0,0.00014024,2]
[385048355,1757652640085,-496.87292785,0.00014024,2]
[385048356,1757652640094,-480.0,0.00014024,2]
[385048357,1757652640104,-490.32040738,0.00014024,2]
[385048358,1757652640114,-480.0,0.00014024,2]
[385048359,1757652640123,-488.10389265,0.00014024,2]
[385048360,1757652640133,-263.33274518,0.00014024,2]
[385048361,1757652640144,-486.26986262,0.00014024,2]
[385048362,1757652640153,-559.49320939,0.00014024,2]
[385048363,1757652640163,-480.0,0.00014024,2]
[385048364,1757652640173,-480.0,0.00014024,2]
[385048365,1757652640182,-244.42657025,0.00014024,2]
[385048366,1757652640192,-484.29398583,0.00014024,2]
[385048367,1757652640202,-480.0,0.00014024,2]
[385048368,1757652640212,-480.0,0.00014024,2]
[385048369,1757652640223,-482.15777201,0.00014024,2]
[385048370,1757652640233,-480.0,0.00014024,2]
[385048371,1757652640243,-489.78538899,0.00014024,2]
[385048372,1757652640252,-157.0,0.00014024,2]
[385048373,1757652640262,-157.0,0.00014024,2]
[385048374,1757652640271,-480.0,0.00014024,2]
[385048375,1757652640280,-480.0,0.00014024,2]
[385048376,1757652640290,-502.30344361,0.00014024,2]
[385048377,1757652640299,-480.0,0.00014024,2]
[385048378,1757652640309,-481.975807,0.00014024,2]
[385048379,1757652640318,-483.18488262,0.00014024,2]
[385048380,1757652640327,-1006.95736075,0.00014024,2]
[385048381,1757652640337,-480.0,0.00014024,2]
[385048382,1757652640347,-480.0,0.00014024,2]
[385048384,1757652640356,-480.0,0.00014024,2]
[385048386,1757652640366,-568.16866517,0.00014024,2]
[385048388,1757652640376,-480.0,0.00014024,2]
[385048390,1757652640386,-500.0,0.00014024,2]
[385048392,1757652640395,-500.0,0.00014024,2]
[385048394,1757652640408,-500.0,0.00014024,2]
[385048396,1757652640418,-480.0,0.00014024,2]
[385048398,1757652640428,-480.0,0.00014024,2]
[385048400,1757652640437,-480.0,0.00014024,2]
[385048402,1757652640447,-480.0,0.00014024,2]
[385048404,1757652640455,-480.0,0.00014024,2]
[385048406,1757652640465,-483.93847967,0.00014024,2]
[385048408,1757652640475,-480.0,0.00014024,2]
[385048410,1757652640485,-488.58350725,0.00014024,2]
[385048412,1757652640494,-480.0,0.00014024,2]
[385048414,1757652640504,-480.0,0.00014024,2]
[385048416,1757652640513,-484.71778429,0.00014024,2]
[385048418,1757652640523,-480.0,0.00014024,2]
[385048420,1757652640533,-480.0,0.00014024,2]
[385048421,1757652640542,-480.0,0.00014024,2]
[385048422,1757652640552,-480.0,0.00014024,2]
[385048423,1757652640562,-480.0,0.00014024,2]
[385048424,1757652640571,-482.87666064,0.00014024,2]
[385048425,1757652640581,-480.0,0.00014024,2]
[385048426,1757652640590,-483.17617044,0.00014024,2]
[385048428,1757652640599,-480.0,0.00014024,2]
[385048429,1757652640609,-481.70848603,0.00014024,2]
[385048430,1757652640618,-480.0,0.00014024,2]
[385048431,1757652640627,-480.0,0.00014024,2]
[385048432,1757652640635,-485.4952814,0.00014024,2]
[385048433,1757652640644,-169.5141667,0.00014024,2]
[385048434,1757652640653,-480.0,0.00014024,2]
[385048435,1757652640663,-483.0085241,0.00014024,2]
[385048436,1757652640672,-480.0,0.00014024,2]
[385048437,1757652640681,-482.54335011,0.00014024,2]
[385048438,1757652640690,-483.83490386,0.00014024,2]
[385048439,1757652640699,-480.0,0.00014024,2]
[385048440,1757652640708,-480.0,0.00014024,2]
[385048441,1757652640717,-481.78436156,0.00014024,2]
[385048442,1757652640727,-480.0,0.00014024,2]
[385048443,1757652640737,-480.0,0.00014024,2]
[385048444,1757652640746,-480.0,0.00014024,2]
[385048445,1757652640755,-480.0,0.00014024,2]
[385048446,1757652640765,-483.18616691,0.00014024,2]
[385048447,1757652640774,-481.88380941,0.00014024,2]
[385048448,1757652640783,-480.0,0.00014024,2]
[385048449,1757652640793,-480.0,0.00014024,2]
[385048450,1757652640802,-483.51871798,0.00014024,2]
[385048451,1757652640811,-481.77469763,0.00014024,2]
[385048452,1757652640821,-483.13379239,0.00014024,2]
[385048453,1757652640830,-480.0,0.00014024,2]
[385048454,1757652640839,-483.175945,0.00014024,2]
[385048455,1757652640849,-480.0,0.00014024,2]
[385048456,1757652640858,-484.72269936,0.00014024,2]
[385048457,1757652640868,-480.0,0.00014024,2]
[385048458,1757652640878,-480.0,0.00014024,2]
[385048459,1757652640888,-480.0,0.00014024,2]
[385048460,1757652640897,-480.0,0.00014024,2]
[385048462,1757652640906,-480.0,0.00014024,2]
[385048463,1757652640915,-483.97618862,0.00014024,2]
[385048464,1757652640925,-485.87945724,0.00014024,2]
[385048465,1757652640934,-482.26275234,0.00014024,2]
[385048466,1757652640944,-480.0,0.00014024,2]
[385048467,1757652640953,-480.0,0.00014024,2]
[385048468,1757652640962,-389.34820567,0.00014024,2]
[385048469,1757652640971,-480.0,0.00014024,2]
[385048470,1757652640981,-480.0,0.00014024,2]
[385048471,1757652640990,-480.0,0.00014024,2]
[385048472,1757652640999,-480.0,0.00014024,2]
[385048473,1757652641008,-480.0,0.00014024,2]
[385048474,1757652641018,-480.0,0.00014024,2]
[385048475,1757652641027,-480.0,0.00014024,2]
[385048476,1757652641039,-480.0,0.00014024,2]
[385048477,1757652641052,-480.0,0.00014024,2]
[385048478,1757652641064,-480.0,0.00014024,2]
[385048479,1757652641078,-480.0,0.00014024,2]
[385048480,1757652641091,-480.0,0.00014024,2]
[385048481,1757652641104,-480.0,0.00014024,2]
[385048482,1757652641114,-480.0,0.00014024,2]
[385048483,1757652641127,-480.0,0.00014024,2]
[385048484,1757652641139,-436.52146158,0.00014024,2]
[385048485,1757652641151,-480.0,0.00014024,2]
[385048486,1757652641165,-480.0,0.00014024,2]
[385048487,1757652641177,-480.0,0.00014024,2]
[385048488,1757652641191,-218.79178046,0.00014024,2]
[385048489,1757652641203,-500.0,0.00014024,2]
[385048490,1757652641215,-157.0,0.00014024,2]
[385048491,1757652641228,-590.17648891,0.00014024,2]
[385048492,1757652641241,-480.0,0.00014024,2]
[385048493,1757652641253,-480.0,0.00014024,2]
[385048494,1757652641265,-480.0,0.00014024,2]
[385048495,1757652641277,-480.0,0.00014024,2]
[385048496,1757652641289,-480.0,0.00014024,2]
[385048497,1757652641300,-480.0,0.00014024,2]
[385048498,1757652641311,-157.11565503,0.00014024,2]
[385048499,1757652641325,-157.0,0.00014024,2]
[385048500,1757652641337,-480.0,0.00014024,2]
[385048501,1757652641349,-480.0,0.00014024,2]
[385048502,1757652641360,-480.0,0.00014025,2]
[385048503,1757652641371,-480.0,0.00014025,2]
[385048504,1757652641382,-480.0,0.00014025,2]
[385048505,1757652641394,-480.0,0.00014025,2]
[385048506,1757652641405,-480.0,0.00014025,2]
[385048507,1757652641423,-480.0,0.00014025,2]
[385048508,1757652641435,-480.0,0.00014025,2]
[385048509,1757652641447,-504.29214878,0.00014025,2]
[385048510,1757652641459,-496.53524269,0.00014025,2]
[385048511,1757652641472,-483.27881912,0.00014025,2]
[385048512,1757652641484,-482.07594619,0.00014025,2]
[385048513,1757652641498,-480.0,0.00014025,2]
[385048514,1757652641511,-480.0,0.00014025,2]
[385048515,1757652641524,-480.0,0.00014026,2]
[385048516,1757652641534,-480.0,0.00014026,2]
[385048517,1757652641543,-480.0,0.00014026,2]
[385048518,1757652641554,-500.0,0.00014073,2]
[385048519,1757652641565,-500.85609696,0.00014073,2]
[385048520,1757652641576,-500.0,0.00014073,2]
[385048521,1757652641589,-500.0,0.00014073,2]
[385048522,1757652641601,-500.0,0.00014073,2]
[385048523,1757652641613,-500.0,0.00014073,2]
[385048524,1757652641623,-1225.6367912,0.00014167,2]
[385048525,1757652641633,-480.0,0.00014197,2]
[385048526,1757652641645,-480.0,0.00014197,2]
[385048527,1757652641658,-480.0,0.00014197,2]
[385048528,1757652641672,-480.0,0.00014197,2]
[385048529,1757652641684,-666.25,0.00014197,2]
[385048530,1757652641695,-480.0,0.00014198,2]
[385048531,1757652641706,-480.0,0.00014198,2]
[385048532,1757652641716,-480.0,0.00014198,2]
[385048533,1757652641728,-480.0,0.00014198,2]
[385048534,1757652641739,-480.0,0.00014198,2]
[385048535,1757652641750,-480.0,0.00014198,2]
[385048536,1757652641760,-480.0,0.00014198,2]
[385048537,1757652641772,-480.0,0.00014198,2]